[Event "22nd Hoogeveen Open 2018"]
[Site "Hoogeveen"]
[Date "2018.10.24"]
[Round "6"]
[White "Tomilova, Elena"]
[Black "Elgersma, Onno"]
[Result "1-0"]
[ECO "A14"]
[WhiteElo "2328"]
[BlackElo "2223"]
[Annotator "NA"]
[PlyCount "51"]
[EventDate "2018.10.20"]
[EventType "swiss"]
[EventCountry "NED"]
[SourceTitle "playchess.com"]
[Source "ChessBase"]
[SourceQuality "1"]
[TimeControl "40/5400+30:1800+30"]

1. Nf3 {[%emt 0:00:00]} Nf6 {[%emt 0:00:00]} 2. c4 {[%emt 0:00:00]} e6 {[%emt 0:00:00]} 3. g3 {[%emt 0:00:00]} d5 {[%emt 0:00:17]} 4. b3 {[%emt 0:00:00]} c5 {[%emt 0:00:39]} 5. Bg2 {[%emt 0:00:14]} Be7 {[%emt 0:01:09]} 6. O-O {[%emt 0:00:23]} O-O {[%emt 0:01:05]} 7. Bb2 {[%emt 0:00:37]} Nc6 {[%emt 0:01:22]} 8. e3 {[%emt 0:02:33]} b6 {[%emt 0:01:14]} 9. Nc3 {[%emt 0:00:24]} Ba6 {[%emt 0:02:10]} 10. d3 {[%emt 0:04:28]} Qd7 {[%emt 0:01:13] A14: English Opening: 1...e6 with b3 by White} 11. Qe2 {[%emt 0:03:43] LiveBook: 29 Games} Rfd8 {[%emt 0:01:17]} 12. Rad1 {[%emt 0:01:39]} Rac8 {[%emt 0:09:39]} 13. h3 {[%emt 0:02:22]} Qe8 {[%emt 0:03:49] [#]} 14. g4 $146 {[%emt 0:05:01]} ({Predecessor:} 14. Rfe1 h6 15. a3 Bb7 16. Qc2 Rd7 17. Ne2 Nh7 18. h4 Bf6 19. cxd5 Rxd5 {½-½ (48) Eljanov,P (2739)-Harikrishna,P (2752) Baku 2016}) 14... h6 {[%emt 0:09:04]} 15. g5 {[%emt 0:07:21]} hxg5 {[%emt 0:03:55]} 16. Nxg5 {[%emt 0:00:08]} d4 {[%emt 0:09:05]} 17. Nb1 {[%emt 0:01:33]} g6 {[%emt 0:11:15]} 18. h4 {[%emt 0:06:34]} Nh5 {[%emt 0:03:06]} 19. Nd2 {[%emt 0:03:26]} Bf8 {[%emt 0:02:31]} 20. Nde4 {[%emt 0:08:42]} f6 {[%emt 0:03:43]} 21. Qxh5 {[%emt 0:00:54]} fxg5 {[%emt 0:08:16]} 22. Qxg5 {[%emt 0:05:20]} Bg7 $18 {[%emt 0:09:12]} 23. h5 {[%emt 0:03:07]} Kh7 {[%emt 0:10:08]} 24. Nf6+ {[%emt 0:10:08]} Bxf6 {[%emt 0:00:13]} 25. Qxf6 {[%emt 0:00:05]} Rc7 {[%emt 0:06:31]} 26. Be4 {[%emt 0:04:03]} 1-0

[Event "22nd Hoogeveen Open 2018"]
[Site "Hoogeveen"]
[Date "2018.10.24"]
[Round "6"]
[White "Van Kooten, Luuk"]
[Black "Rakshitta, Ravi"]
[Result "1/2-1/2"]
[ECO "D36"]
[WhiteElo "2320"]
[BlackElo "2160"]
[Annotator "NA"]
[PlyCount "86"]
[EventDate "2018.10.20"]
[EventType "swiss"]
[EventCountry "NED"]
[SourceTitle "playchess.com"]
[Source "ChessBase"]
[SourceQuality "1"]
[TimeControl "40/5400+30:1800+30"]

1. d4 {[%emt 0:00:00]} Nf6 {[%emt 0:01:04]} 2. c4 {[%emt 0:00:23]} e6 {[%emt 0:00:04]} 3. Nc3 {[%emt 0:00:32]} d5 {[%emt 0:00:06]} 4. cxd5 {[%emt 0:00:30]} exd5 {[%emt 0:00:02]} 5. Bg5 {[%emt 0:00:27]} Nbd7 {[%emt 0:00:09]} 6. e3 {[%emt 0:01:03]} Be7 {[%emt 0:00:13]} 7. Bd3 {[%emt 0:02:22]} c6 {[%emt 0:00:18]} 8. Qc2 {[%emt 0:02:42]} O-O {[%emt 0:00:09]} 9. Nge2 {[%emt 0:01:37]} Re8 {[%emt 0:00:12]} 10. O-O {[%emt 0:02:16]} h6 {[%emt 0:00:10]} 11. Bf4 {[%emt 0:04:59]} Nf8 {[%emt 0:02:23] LiveBook: 18 Games} 12. h3 {[%emt 0:07:49] D36: Queen's Gambit Declined: Exchange Variation: Main line (5 Bg5 c6 6 Qc2)} (12. a3 a5 13. f3 Nh5 14. Be5 f6 15. Bg3 Nxg3 16. Nxg3 Bd6 17. Rae1 Qc7 18. f4 Be6 19. Nf5 Bxf5 20. Bxf5 {1-0 (68) Nepomniachtchi,I (2720)-Naiditsch,A (2722) Dortmund 2015 CBM 167 [Sagar Shah]}) 12... Ne6 {[%emt 0:02:46]} 13. Bg3 {[%emt 0:02:53]} Nh5 $146 {[%emt 0:14:05]} ({Predecessor:} 13... Bd6 14. Rae1 Ng5 15. Bxd6 Qxd6 {1-0 (71) Srebrnic,A (2211)-Papp,P (2302) Istanbul 2012}) 14. Bh2 {[%emt 0:05:22]} Bd6 {[%emt 0:00:52]} 15. Bxd6 {[%emt 0:04:03]} Qxd6 {[%emt 0:00:01]} 16. g4 {[%emt 0:06:04]} Ng5 {[%emt 0:06:11]} 17. Kg2 $1 {[%emt 0:00:38]} Nf6 {[%emt 0:45:06]} 18. Ng3 $15 {[%emt 0:13:53]} Nxg4 {[%emt 0:04:11]} 19. hxg4 {[%emt 0:00:34]} Bxg4 {[%emt 0:00:01]} 20. Rg1 {[%emt 0:12:49]} Qf6 {[%emt 0:07:52]} 21. Bf5 {[%emt 0:10:44]} Bf3+ {[%emt 0:00:13]} 22. Kf1 {[%emt 0:05:05]} g6 {[%emt 0:00:15]} 23. Bd3 {[%emt 0:00:38]} Nh3 {[%emt 0:01:44]} 24. Rg2 {[%emt 0:00:32]} Bxg2+ {[%emt 0:02:29]} 25. Kxg2 {[%emt 0:00:05]} Ng5 {[%emt 0:00:04]} 26. Qe2 {[%emt 0:01:53]} Ne6 {[%emt 0:01:29]} 27. Qg4 {[%emt 0:02:12]} Qg5 {[%emt 0:00:07]} 28. Qh3 {[%emt 0:01:23]} h5 {[%emt 0:03:05]} 29. Rh1 {[%emt 0:00:47]} Qf6 {[%emt 0:00:26]} 30. Nge2 {[%emt 0:02:11]} Kg7 {[%emt 0:01:33]} 31. Kf1 {[%emt 0:03:55]} Ng5 {[%emt 0:00:46]} 32. Qg3 {[%emt 0:01:12]} Qf3 {[%emt 0:01:44]} 33. Qxf3 {[%emt 0:00:29]} Nxf3 {[%emt 0:00:00]} 34. Nf4 {[%emt 0:00:18]} Nd2+ {[%emt 0:02:18]} 35. Ke2 {[%emt 0:01:21]} Ne4 {[%emt 0:00:01]} 36. Bxe4 {[%emt 0:01:42]} dxe4 {[%emt 0:00:01]} 37. f3 {[%emt 0:00:20]} exf3+ {[%emt 0:00:59]} 38. Kxf3 {[%emt 0:00:01]} Re7 {[%emt 0:03:03]} 39. Rh2 {[%emt 0:01:31]} Rd8 {[%emt 0:01:07]} 40. Rg2 {[%emt 0:00:39]} Kh6 {[%emt 0:02:03]} 41. Rh2 {[%emt 0:31:16]} Kh7 {[%emt 0:20:59]} 42. Rg2 {[%emt 0:00:07]} f5 43. Nd1 {[%emt 0:00:15]} Rde8 1/2-1/2

[Event "22nd Hoogeveen Open 2018"]
[Site "Hoogeveen"]
[Date "2018.10.24"]
[Round "6"]
[White "Den Hartog, Marijn"]
[Black "Li, Henry"]
[Result "0-1"]
[ECO "E62"]
[WhiteElo "2296"]
[BlackElo "2207"]
[Annotator "NA"]
[PlyCount "174"]
[EventDate "2018.10.20"]
[EventType "swiss"]
[EventCountry "NED"]
[SourceTitle "playchess.com"]
[Source "ChessBase"]
[SourceQuality "1"]
[TimeControl "40/5400+30:1800+30"]

1. d4 {[%emt 0:00:00]} Nf6 {[%emt 0:00:00]} 2. Nf3 {[%emt 0:00:12]} g6 {[%emt 0:00:00]} 3. c4 {[%emt 0:00:28]} Bg7 {[%emt 0:00:00]} 4. g3 {[%emt 0:00:07]} O-O {[%emt 0:00:09]} 5. Bg2 {[%emt 0:00:03]} d6 {[%emt 0:00:07]} 6. O-O {[%emt 0:00:13]} Nc6 {[%emt 0:00:17]} 7. Nc3 {[%emt 0:01:44]} e5 {[%emt 0:00:18]} 8. d5 {[%emt 0:02:00]} Nb8 {[%emt 0:00:23]} 9. e4 {[%emt 0:01:11]} a5 {[%emt 0:00:08] E62: King's Indian: Fianchetto: 6...c6 and Panno Variation (6...Nc6) without ...a6} 10. h3 {[%emt 0:03:31] LiveBook: 11 Games} (10. Ne1 Na6 11. Nd3 Nb4 12. Ne1 Na6 13. f4 exf4 14. gxf4 Re8 15. Nd3 Ng4 16. h3 Bd4+ 17. Kh1 {½-½ (25) Inarkiev,E (2727)-Sutovsky,E (2650) Poikovsky 2017}) 10... Na6 {[%emt 0:00:25]} 11. Bg5 {[%emt 0:00:17]} h6 {[%emt 0:32:08]} 12. Be3 {[%emt 0:00:52]} Nd7 {[%emt 0:04:53]} 13. Qd2 $146 {[%emt 0:05:09]} ({Predecessor:} 13. Rb1 Ndc5 14. Nh4 Qe8 15. Qd2 Kh7 16. Nb5 Qe7 17. Qxa5 {1-0 (69) Birnboim,N (2365)-Kraus,Y (2218) Tiberias 2016}) 13... Kh7 {[%emt 0:00:08]} 14. h4 {[%emt 0:00:16]} Nf6 {[%emt 0:06:20]} 15. Nh2 {[%emt 0:00:29]} Bd7 {[%emt 0:03:53]} 16. Bf3 {[%emt 0:07:45]} Qc8 {[%emt 0:03:45]} 17. Bd1 {[%emt 0:05:13]} Bh3 {[%emt 0:05:13]} 18. Re1 {[%emt 0:02:05]} b6 {[%emt 0:02:54]} 19. a3 {[%emt 0:10:21]} Ng8 {[%emt 0:08:21]} 20. h5 {[%emt 0:02:23]} Nf6 {[%emt 0:01:00]} 21. hxg6+ {[%emt 0:01:31]} fxg6 {[%emt 0:00:04]} 22. Bf3 {[%emt 0:02:04]} Ng4 {[%emt 0:01:46]} 23. Bxg4 {[%emt 0:03:37]} Bxg4 {[%emt 0:00:05]} 24. Nxg4 {[%emt 0:00:04]} Qxg4 {[%emt 0:00:07]} 25. Qe2 {[%emt 0:02:56]} Rf3 {[%emt 0:06:25]} 26. Nb1 {[%emt 0:13:55]} h5 {[%emt 0:04:07]} 27. Nd2 {[%emt 0:06:45]} Rff8 {[%emt 0:00:32]} 28. Qxg4 {[%emt 0:01:56]} hxg4 {[%emt 0:00:01]} 29. Kg2 {[%emt 0:00:08]} g5 {[%emt 0:03:51]} 30. Bxg5 {[%emt 0:09:02]} Nc5 {[%emt 0:00:05]} 31. Be3 {[%emt 0:01:25]} Nd3 {[%emt 0:00:09]} 32. Rh1+ {[%emt 0:00:05]} Kg6 {[%emt 0:00:17]} 33. Rh4 {[%emt 0:01:36]} Nxb2 {[%emt 0:00:14]} 34. Rxg4+ {[%emt 0:00:25]} Kf7 {[%emt 0:00:07]} 35. Rb1 {[%emt 0:02:16]} Na4 {[%emt 0:01:19]} 36. Nf3 {[%emt 0:01:36]} Bf6 {[%emt 0:00:43]} 37. Rb3 {[%emt 0:03:45]} Rg8 {[%emt 0:00:47]} 38. Rxg8 {[%emt 0:01:14]} Rxg8 {[%emt 0:00:02]} 39. Nd2 {[%emt 0:03:41]} Bg5 {[%emt 0:00:24]} 40. Bxg5 {[%emt 0:00:18]} Rxg5 {[%emt 0:00:05]} 41. Rf3+ {[%emt 0:31:19]} Ke7 {[%emt 0:33:02]} 42. Rf5 {[%emt 0:01:33]} Rxf5 {[%emt 0:05:21]} 43. exf5 {[%emt 0:00:03]} b5 {[%emt 0:00:13]} 44. Kf3 {[%emt 0:00:00]} b4 {[%emt 0:00:00]} 45. axb4 {[%emt 0:00:00]} axb4 {[%emt 0:00:00]} 46. g4 {[%emt 0:00:23]} Nc5 {[%emt 0:00:00] [#]} 47. Ke3 {[%emt 0:00:54]} (47. Ke2 $1 $16) 47... b3 {[%emt 0:00:00]} 48. g5 {[%emt 0:00:26]} b2 {[%emt 0:00:00]} 49. Nb1 {[%emt 0:00:25]} Kf7 {[%emt 0:00:00]} 50. f3 {[%emt 0:00:19]} Nb3 {[%emt 0:00:00]} 51. Kd3 {[%emt 0:00:43]} Kg7 {[%emt 0:00:00]} 52. Ke4 {[%emt 0:00:38]} Nc5+ {[%emt 0:00:00]} 53. Ke3 {[%emt 0:00:05]} Nb3 {[%emt 0:00:00]} 54. Kd3 {[%emt 0:00:08]} Kf7 {[%emt 0:00:00]} 55. Na3 {[%emt 0:00:04]} Nd4 {[%emt 0:03:26]} 56. Ke4 {[%emt 0:05:21]} Nb3 {[%emt 0:00:38]} 57. Nb1 {[%emt 0:00:01]} Nc5+ {[%emt 0:00:23]} 58. Ke3 {[%emt 0:00:05]} Nb3 {[%emt 0:00:09]} 59. f4 {[%emt 0:02:19]} exf4+ {[%emt 0:00:21]} 60. Kxf4 {[%emt 0:00:03]} Na5 {[%emt 0:00:08]} 61. c5 {[%emt 0:00:10]} dxc5 {[%emt 0:02:05]} 62. f6 {[%emt 0:00:17]} Nc4 {[%emt 0:00:33]} 63. Kf5 {[%emt 0:01:05]} Nd6+ {[%emt 0:00:55]} 64. Ke5 {[%emt 0:01:11]} Kg6 {[%emt 0:00:58]} 65. Ke6 {[%emt 0:00:40]} Kxg5 {[%emt 0:00:33]} 66. f7 {[%emt 0:00:48]} Nxf7 {[%emt 0:00:29]} 67. Kd7 {[%emt 0:00:34]} Kf5 {[%emt 0:05:12]} 68. Kc6 {[%emt 0:00:05]} c4 {[%emt 0:01:31]} 69. Kc5 {[%emt 0:00:04]} Nd6 {[%emt 0:01:04]} 70. Kd4 {[%emt 0:00:53]} Kf4 {[%emt 0:00:17]} 71. Kc3 {[%emt 0:00:49]} Ke4 $19 {[%emt 0:00:16]} 72. Kxb2 {[%emt 0:00:11]} Kd3 {[%emt 0:00:50]} 73. Nc3 {[%emt 0:01:36]} Ne4 {[%emt 0:00:23]} 74. Nb5 {[%emt 0:00:34]} (74. Nb1 c3+ 75. Kc1 Nf6 76. d6 cxd6 77. Na3 d5 78. Nc2 d4 79. Kd1 Nd5 80. Ne1+ Ke4 81. Kc2 Nb4+ 82. Kb3 {[#]} c2 $1 {[%mdl 512]} 83. Nxc2 Nxc2 84. Kxc2 Ke3 85. Kd1 Kd3 86. Ke1 Kc2 87. Ke2 d3+ 88. Ke3 d2 89. Ke4 d1=Q 90. Ke5 Qd2 91. Kf5 Qd6 92. Kg4 Kd2 93. Kf3 Qd4 94. Kg3 Ke3 95. Kg2 Qg4+ 96. Kh1 Kf3 97. Kh2 Qg2#) 74... c3+ {[%emt 0:01:47]} 75. Kc1 {[%emt 0:00:20]} Nc5 {[%emt 0:00:40]} 76. Na3 {[%emt 0:00:19]} Nb3+ {[%emt 0:00:18]} 77. Kd1 {[%emt 0:00:06]} Nd4 {[%emt 0:00:23]} 78. Kc1 {[%emt 0:02:29]} Ke4 {[%emt 0:02:10]} 79. Nb1 {[%emt 0:00:00]} Kd3 {[%emt 0:00:45]} 80. Na3 {[%emt 0:00:00]} Ke4 {[%emt 0:01:41]} 81. Nb1 {[%emt 0:00:00]} Nb5 {[%emt 0:00:51]} 82. Kc2 {[%emt 0:00:00]} Kd4 {[%emt 0:00:26]} 83. Kd1 {[%emt 0:00:56]} Kxd5 {[%emt 0:00:23]} 84. Kc1 {[%emt 0:00:01]} Kd4 {[%emt 0:00:18]} 85. Kd1 {[%emt 0:00:03]} Kd3 {[%emt 0:01:12]} 86. Kc1 {[%emt 0:00:05]} c2 {[%emt 0:00:33]} 87. Nc3 {[%emt 0:00:43]} Nxc3 {[%emt 0:00:11]} 0-1

[Event "22nd Hoogeveen Open 2018"]
[Site "Hoogeveen"]
[Date "2018.10.24"]
[Round "6"]
[White "Blagojevic, Tijana"]
[Black "Zwirs, Nico"]
[Result "0-1"]
[ECO "B81"]
[WhiteElo "2232"]
[BlackElo "2410"]
[Annotator "RC"]
[PlyCount "96"]
[EventDate "2018.10.20"]
[EventType "swiss"]
[EventCountry "NED"]
[SourceTitle "playchess.com"]
[Source "ChessBase"]
[SourceQuality "1"]
[TimeControl "40/5400+30:1800+30"]

1. e4 {[%emt 0:00:00]} c5 {[%emt 0:00:00]} 2. Nf3 {[%emt 0:00:00]} e6 {[%emt 0:00:00]} 3. d4 {[%emt 0:00:00]} cxd4 {[%emt 0:00:00]} 4. Nxd4 {[%emt 0:00:00]} Nf6 {[%emt 0:01:17]} 5. Nc3 {[%emt 0:00:59]} d6 {[%emt 0:02:37]} 6. g4 {[%emt 0:00:30]} h6 {[%emt 0:00:25]} 7. h3 {[%emt 0:02:33]} a6 {[%emt 0:02:35]} 8. Bg2 {[%emt 0:00:47]} g5 {[%emt 0:00:51]} 9. Be3 {[%emt 0:01:22]} Nbd7 {[%emt 0:00:22]} 10. Qe2 {[%emt 0:01:11]} Qc7 {[%emt 0:01:03]} 11. a4 {[%emt 0:06:21]} Ne5 {[%emt 0:01:59]} 12. Rd1 {[%emt 0:00:48]} b6 {[%emt 0:13:07]} 13. O-O {[%emt 0:00:31]} Bb7 {[%emt 0:00:15]} 14. Bc1 {[%emt 0:08:49]} Nfd7 {[%emt 0:08:03]} 15. f4 {[%emt 0:05:42]} gxf4 {[%emt 0:00:00]} 16. Rxf4 {[%emt 0:00:19]} Be7 {[%emt 0:00:17]} 17. Rff1 {[%emt 0:05:46]} Ng6 {[%emt 0:11:03]} 18. Nf3 {[%emt 0:02:35]} Nde5 {[%emt 0:13:08]} 19. Kh1 {[%emt 0:00:24]} Nxf3 {[%emt 0:03:41]} 20. Qxf3 {[%emt 0:00:08]} Ne5 {[%emt 0:00:09]} 21. Qf2 {[%emt 0:01:10]} Bg5 {[%emt 0:02:21]} 22. Ne2 {[%emt 0:03:16]} Qc5 {[%emt 0:07:38]} 23. Nd4 {[%emt 0:01:20]} Rg8 {[%emt 0:03:20]} 24. Bf4 {[%emt 0:19:00]} O-O-O {[%emt 0:06:11]} 25. Bg3 {[%emt 0:01:29]} Rg7 {[%emt 0:01:32]} 26. Ne2 {[%emt 0:07:21]} Be3 {[%emt 0:04:21]} 27. Qe1 {[%emt 0:00:03]} h5 {[%emt 0:00:33]} 28. b4 {[%emt 0:01:01]} Qc4 {[%emt 0:01:16]} 29. Bxe5 {[%emt 0:01:55]} dxe5 {[%emt 0:00:09]} 30. Rxd8+ {[%emt 0:03:18]} Kxd8 {[%emt 0:00:01]} 31. Ng3 {[%emt 0:01:47]} Bg5 {[%emt 0:04:01]} 32. Nxh5 {[%emt 0:00:12]} Rh7 {[%emt 0:00:03]} 33. Qa1 {[%emt 0:06:18]} Bxe4 {[%emt 0:02:34]} 34. Qd1+ {[%emt 0:05:35]} Ke7 {[%emt 0:00:54]} 35. Bxe4 {[%emt 0:03:04]} Qxe4+ {[%emt 0:00:02]} 36. Qf3 {[%emt 0:00:05]} Qxf3+ {[%emt 0:00:15]} 37. Rxf3 {[%emt 0:00:02]} f5 {[%emt 0:11:03]} 38. Rc3 {[%emt 0:01:41]} Kd6 {[%emt 0:00:10]} 39. b5 {[%emt 0:02:02]} axb5 {[%emt 0:00:03]} 40. axb5 {[%emt 0:00:04]} Kd5 {[%emt 0:00:46]} 41. Rc6 {[%emt 0:30:34]} e4 {[%emt 0:18:55]} 42. Kg2 {[%emt 0:00:00]} f4 {[%emt 0:00:43]} 43. c4+ {[%emt 0:00:00]} Ke5 {[%emt 0:02:10]} 44. c5 {[%emt 0:00:00]} f3+ {[%emt 0:01:12]} 45. Kf2 {[%emt 0:00:00]} Bh4+ {[%emt 0:04:48]} 46. Ke3 {[%emt 0:00:00]} Bg5+ {[%emt 0:00:05]} 47. Kf2 {[%emt 0:00:00]} Rf7 {[%emt 0:00:54]} 48. cxb6 {[%emt 0:00:00]} e3+ {[%emt 0:00:09]} 0-1

[Event "22nd Hoogeveen Open 2018"]
[Site "Hoogeveen"]
[Date "2018.10.24"]
[Round "6"]
[White "Kokje, Joris"]
[Black "Thrish Karthik"]
[Result "1/2-1/2"]
[ECO "D22"]
[WhiteElo "2232"]
[BlackElo "2116"]
[Annotator "NA"]
[PlyCount "96"]
[EventDate "2018.10.20"]
[EventType "swiss"]
[EventCountry "NED"]
[SourceTitle "playchess.com"]
[Source "ChessBase"]
[SourceQuality "1"]
[TimeControl "40/5400+30:1800+30"]

1. d4 {[%emt 0:00:00]} d5 {[%emt 0:00:10]} 2. c4 {[%emt 0:00:00]} dxc4 {[%emt 0:02:06]} 3. Nf3 {[%emt 0:00:01]} a6 {[%emt 0:00:03]} 4. e3 {[%emt 0:03:39]} b5 {[%emt 0:13:43]} 5. a4 {[%emt 0:01:01]} Bb7 {[%emt 0:04:53] LiveBook: 297 Games} 6. b3 {[%emt 0:01:50]} Nf6 {[%emt 0:08:32] D22: Queen's Gambit Accepted: 3 Nf3 a6 4 e3} (6... e6 7. bxc4 bxc4 8. Bxc4 c5 9. O-O Nf6 10. Nbd2 Nbd7 11. Rb1 Qc7 12. Bb2 cxd4 13. Bxd4 Bc5 14. Qe2 {½-½ (14) Cheparinov,I (2695)-Ivanchuk,V (2727) Mali Losinj 2017}) 7. axb5 {[%emt 0:02:43]} axb5 {[%emt 0:00:39]} 8. Rxa8 {[%emt 0:00:17]} Bxa8 {[%emt 0:00:03]} 9. bxc4 {[%emt 0:00:27]} bxc4 {[%emt 0:00:05]} 10. Ba3 {[%emt 0:02:11]} Nbd7 {[%emt 0:13:20]} 11. Qa4 $146 {[%emt 0:12:03]} ({Predecessor:} 11. Bxc4 e6 12. Bxf8 Kxf8 {0-1 (37) Buckley,G (2398)-Thorfinnsson,B (2311) Reykjavik 2006}) 11... e6 {[%emt 0:12:23]} 12. Bxf8 {[%emt 0:04:39]} Kxf8 {[%emt 0:00:10]} 13. Qa3+ {[%emt 0:00:46]} c5 {[%emt 0:08:22]} 14. dxc5 {[%emt 0:05:03]} Bxf3 {[%emt 0:03:26]} 15. c6+ {[%emt 0:10:25]} Kg8 {[%emt 0:05:52]} 16. gxf3 {[%emt 0:01:04]} Qb6 {[%emt 0:08:53]} 17. Qa8+ {[%emt 0:13:48]} Nb8 {[%emt 0:11:31]} 18. Qb7 $16 {[%emt 0:05:34]} Qxb7 {[%emt 0:00:00]} 19. cxb7 {[%emt 0:00:05]} Kf8 {[%emt 0:00:00]} 20. Bxc4 {[%emt 0:00:54]} Ke7 {[%emt 0:00:42]} 21. Ke2 {[%emt 0:03:28]} Rd8 {[%emt 0:03:47]} 22. Nc3 {[%emt 0:01:13]} Rd7 {[%emt 0:01:04]} 23. Rb1 {[%emt 0:02:34]} Rc7 {[%emt 0:00:19]} 24. Rb4 {[%emt 0:00:17]} Ne8 {[%emt 0:00:35]} 25. Ne4 {[%emt 0:01:04]} h6 {[%emt 0:01:07]} 26. Bd3 {[%emt 0:04:51]} f5 {[%emt 0:00:37]} 27. Ng3 {[%emt 0:00:04]} Nd6 {[%emt 0:00:27]} 28. e4 {[%emt 0:00:06]} g6 {[%emt 0:00:29]} 29. Rb6 {[%emt 0:02:28]} Rxb7 {[%emt 0:00:26]} 30. Rxb7+ {[%emt 0:00:11]} Nxb7 {[%emt 0:00:01]} 31. exf5 {[%emt 0:00:07]} exf5 {[%emt 0:00:11]} 32. Bxf5 {[%emt 0:00:07]} gxf5 {[%emt 0:00:01]} 33. Nxf5+ {[%emt 0:00:07]} Kf6 {[%emt 0:00:26]} 34. Nxh6 {[%emt 0:00:04]} Kg5 {[%emt 0:00:17]} 35. Nf7+ {[%emt 0:01:33]} Kf6 {[%emt 0:00:27]} 36. Nh6 {[%emt 0:00:15]} Kg5 {[%emt 0:02:08]} 37. Ng4 {[%emt 0:00:06]} Nd7 {[%emt 0:00:20]} 38. Ke3 {[%emt 0:00:32]} Nbc5 {[%emt 0:00:19]} 39. Kd4 {[%emt 0:03:42]} Ne6+ {[%emt 0:00:47]} 40. Kd5 {[%emt 0:00:34]} Nf4+ {[%emt 0:00:31]} 41. Ke4 {[%emt 0:31:03]} Nc5+ {[%emt 0:30:40]} 42. Ke5 {[%emt 0:02:13]} Nd7+ {[%emt 0:00:29]} 43. Ke4 {[%emt 0:00:18]} Ng6 {[%emt 0:00:11]} 44. Ke3 {[%emt 0:01:00]} Nf6 {[%emt 0:00:00]} 45. h3 {[%emt 0:00:00]} Nxg4+ {[%emt 0:00:00]} 46. fxg4 {[%emt 0:00:00]} Nf4 {[%emt 0:00:00]} 47. h4+ {[%emt 0:00:00]} Kxg4 {[%emt 0:00:00]} 48. f3+ {[%emt 0:00:00]} Kf5 {[%emt 0:00:00] Ke4+ [%emt 00:00:10] Ke5+} 1/2-1/2

[Event "22nd Hoogeveen Open 2018"]
[Site "Hoogeveen"]
[Date "2018.10.24"]
[Round "6"]
[White "Sparenberg, Erik"]
[Black "Hilwerda, Jonas"]
[Result "1-0"]
[ECO "C74"]
[WhiteElo "2224"]
[BlackElo "2109"]
[Annotator "NA"]
[PlyCount "155"]
[EventDate "2018.10.20"]
[EventType "swiss"]
[EventCountry "NED"]
[SourceTitle "playchess.com"]
[Source "ChessBase"]
[SourceQuality "1"]
[TimeControl "40/5400+30:1800+30"]

1. e4 {[%emt 0:00:00]} e5 {[%emt 0:00:00]} 2. Nf3 {[%emt 0:00:00]} Nc6 {[%emt 0:00:00]} 3. Bb5 {[%emt 0:00:03]} a6 {[%emt 0:00:00]} 4. Ba4 {[%emt 0:00:05]} d6 {[%emt 0:00:00]} 5. c3 {[%emt 0:00:24]} f5 {[%emt 0:00:10]} 6. d3 {[%emt 0:00:28]} Nf6 {[%emt 0:00:11]} 7. Nbd2 {[%emt 0:00:15]} fxe4 {[%emt 0:02:40] C74: Ruy Lopez: Deferred Steinitz: 5 c3 f5} (7... Be7 8. Bb3 Na5 9. O-O Nxb3 10. Qxb3 Qd7 11. d4 exd4 12. exf5 Qxf5 13. Re1 Qb5 14. Qxb5+ axb5 15. Nxd4 {0-1 (45) Sidhant,M (2267)-Sunilduth Lyna,N (2541) New Delhi 2017}) 8. dxe4 {[%emt 0:00:19]} Bd7 {[%emt 0:03:37]} 9. b4 $146 {[%emt 0:05:52]} ({Predecessor:} 9. O-O Be7 10. h3 h6 11. Re1 O-O 12. Bb3+ Kh7 13. Nf1 Qe8 14. Ng3 {½-½ (60) Tuleubayev,D-Manukyan,A Kemer 2009}) 9... h6 {[%emt 0:10:01]} 10. O-O {[%emt 0:09:56]} g5 {[%emt 0:05:27]} 11. Ne1 {[%emt 0:09:46]} Bg7 {[%emt 0:04:29]} 12. Bb3 {[%emt 0:00:10]} Qe7 {[%emt 0:04:01]} 13. Nc2 {[%emt 0:01:56]} Nd8 {[%emt 0:09:25]} 14. Ne3 {[%emt 0:02:37]} Nf7 {[%emt 0:06:00]} 15. Re1 {[%emt 0:14:46]} h5 {[%emt 0:20:33]} 16. Ndf1 {[%emt 0:12:36]} h4 {[%emt 0:06:43]} 17. Nd5 {[%emt 0:03:21]} Nxd5 {[%emt 0:06:24]} 18. Qxd5 {[%emt 0:06:18]} c6 {[%emt 0:02:29]} 19. Qxf7+ {[%emt 0:03:11]} Qxf7 {[%emt 0:00:02]} 20. Bxf7+ {[%emt 0:00:09]} Kxf7 {[%emt 0:00:02]} 21. Bxg5 {[%emt 0:00:13]} Rh5 {[%emt 0:01:30]} 22. Be3 {[%emt 0:01:16]} Be6 {[%emt 0:01:40]} 23. Nd2 {[%emt 0:05:46]} Rd8 {[%emt 0:10:11]} 24. Nb3 {[%emt 0:07:40]} Bxb3 {[%emt 0:01:49]} 25. axb3 {[%emt 0:00:02]} d5 {[%emt 0:00:34]} 26. Bb6 {[%emt 0:01:04]} Rd7 {[%emt 0:00:53]} 27. Rad1 {[%emt 0:00:38]} Ke6 {[%emt 0:00:56]} 28. Rd3 {[%emt 0:01:59]} Bf6 {[%emt 0:01:43]} 29. Red1 {[%emt 0:05:16]} Rhh7 {[%emt 0:00:40]} 30. f3 {[%emt 0:00:14]} Rhg7 {[%emt 0:00:30]} 31. Be3 {[%emt 0:01:18]} Rg8 {[%emt 0:00:25]} 32. h3 {[%emt 0:01:12]} Rdg7 {[%emt 0:01:25]} 33. R1d2 {[%emt 0:00:47]} Rd7 {[%emt 0:00:19]} 34. Kf1 {[%emt 0:01:50]} Rgg7 $14 {[%emt 0:00:51]} 35. Rd1 {[%emt 0:01:08]} Rg8 {[%emt 0:00:06]} 36. R3d2 {[%emt 0:01:29]} Rg6 {[%emt 0:00:36]} 37. Re1 {[%emt 0:01:41]} Rg8 {[%emt 0:01:05]} 38. Rd3 {[%emt 0:01:35]} Rdg7 {[%emt 0:00:57]} 39. Re2 {[%emt 0:00:12]} Rd7 {[%emt 0:00:02]} 40. exd5+ {[%emt 0:01:16]} Rxd5 {[%emt 0:00:11]} 41. Red2 {[%emt 0:31:05]} Rgd8 {[%emt 0:02:16]} 42. Ke2 {[%emt 0:00:00]} Rg8 {[%emt 0:00:43]} 43. Kf1 {[%emt 0:00:00]} Rgd8 {[%emt 0:03:27]} 44. Rxd5 {[%emt 0:00:00]} cxd5 {[%emt 0:01:42]} 45. Bc5 {[%emt 0:00:00]} Rc8 {[%emt 0:02:41]} 46. c4 {[%emt 0:00:00]} d4 {[%emt 0:02:25]} 47. f4 {[%emt 0:00:00]} Rd8 {[%emt 0:10:18]} 48. fxe5 {[%emt 0:00:00]} Bxe5 {[%emt 0:01:38]} 49. Kf2 {[%emt 0:00:00]} Rd7 {[%emt 0:01:36]} 50. Rd3 {[%emt 0:00:00]} Kf5 {[%emt 0:02:58]} 51. Kf3 {[%emt 0:00:00]} Rg7 {[%emt 0:00:19]} 52. Bxd4 {[%emt 0:00:00]} Rg3+ {[%emt 0:02:23]} 53. Ke2 {[%emt 0:00:00]} Rxg2+ {[%emt 0:00:46]} 54. Kf1 {[%emt 0:01:21]} Rg3 {[%emt 0:00:30]} 55. Rxg3 {[%emt 0:00:43]} Bxg3 {[%emt 0:00:15]} 56. Ke2 {[%emt 0:01:04]} Ke4 {[%emt 0:01:11]} 57. Bf6 {[%emt 0:01:06]} Kf5 {[%emt 0:01:27]} 58. Be7 {[%emt 0:00:33]} Ke4 {[%emt 0:00:43]} 59. Bd8 {[%emt 0:01:46]} Kd4 {[%emt 0:00:23]} 60. Bf6+ {[%emt 0:00:34]} Ke4 {[%emt 0:00:08]} 61. b5 {[%emt 0:01:19]} axb5 {[%emt 0:00:20]} 62. cxb5 {[%emt 0:00:03]} Kf5 {[%emt 0:00:48]} 63. Bd8 {[%emt 0:00:09]} Ke4 {[%emt 0:01:22]} 64. Be7 {[%emt 0:01:27]} Kd4 {[%emt 0:01:13]} 65. Kf3 {[%emt 0:00:28]} Kc3 {[%emt 0:00:43]} 66. Kg4 {[%emt 0:00:25]} Kxb3 {[%emt 0:00:06]} 67. Bxh4 {[%emt 0:00:16]} Bd6 {[%emt 0:00:49]} 68. Bf6 {[%emt 0:00:27]} Kc4 {[%emt 0:00:32]} 69. b6 {[%emt 0:00:57]} Kc5 {[%emt 0:00:47]} 70. Bd8 {[%emt 0:00:20]} Kc6 {[%emt 0:00:44]} 71. h4 {[%emt 0:00:38]} Kd7 {[%emt 0:00:05]} 72. Bc7 {[%emt 0:01:07]} Bc5 {[%emt 0:01:07]} 73. Kf5 {[%emt 0:00:17]} Ke7 {[%emt 0:00:45]} 74. Kg6 {[%emt 0:00:28]} Kf8 {[%emt 0:00:12]} 75. h5 {[%emt 0:00:24]} Bd4 {[%emt 0:00:30]} 76. h6 {[%emt 0:00:21]} Kg8 {[%emt 0:00:14]} 77. Bd6 {[%emt 0:00:55]} Kh8 {[%emt 0:01:15]} 78. Be7 {[%emt 0:00:56]} 1-0